fUSD/lending_fUSD_20240728
["ID","MTS","AMOUNT","RATE_DAILY","PERIOD"]
[333480183,1722177072317,-151.0,0.00010999,2]
[333480184,1722177072328,-1089.033249,0.00010999,2]
[333480185,1722177072337,-151.0,0.00010999,2]
[333480186,1722177072348,-1089.033249,0.00010999,2]
[333480187,1722177072359,-151.0,0.00010999,2]
[333480188,1722177072369,-1089.033249,0.00010999,2]
[333480189,1722177072380,-381.86278,0.00010999,2]
[333480190,1722177072391,-500.0,0.00010999,2]
[333480191,1722177072401,-151.0,0.00010999,2]
[333480192,1722177072411,-1089.033249,0.00010999,2]
[333480193,1722177072421,-501.68853978,0.00010999,2]
[333480194,1722177072431,-1089.033249,0.00010999,2]
[333480195,1722177072441,-381.86278,0.00010999,2]
[333480196,1722177072451,-373.57,0.00010999,2]
[333480197,1722177072461,-151.0,0.00010999,2]
[333480198,1722177072472,-1089.033249,0.00010999,2]
[333480199,1722177072482,-381.86278,0.00010999,2]
[333480200,1722177072495,-234.715696,0.00010999,2]
[333480201,1722177072504,-1089.033249,0.00010999,2]
[333480202,1722177072514,-381.86278,0.00010999,2]
[333480203,1722177072523,-1089.033249,0.00010999,2]
[333480204,1722177072533,-381.86278,0.00010999,2]
[333480205,1722177072543,-1089.033249,0.00010999,2]
[333480206,1722177072553,-381.86278,0.00010999,2]
[333480207,1722177072563,-500.0,0.00010999,2]
[333480208,1722177072573,-1089.033244,0.00010999,2]
[333480209,1722177072582,-535.4,0.00010999,2]
[333480210,1722177072592,-381.86278,0.00010999,2]
[333480211,1722177072602,-500.0,0.00010999,2]
[333480212,1722177072611,-381.86278,0.00010999,2]
[333480213,1722177072620,-321.0,0.00010999,2]
[333480214,1722177072630,-381.86278,0.00010999,2]
[333480215,1722177072640,-500.0,0.00010999,2]
[333480216,1722177072650,-500.0,0.00010999,2]
[333480217,1722177072660,-500.0,0.00010999,2]
[333480218,1722177072670,-381.86278,0.00010999,2]
[333480219,1722177072680,-645.24,0.00010999,2]
[333480220,1722177072691,-433.65,0.00010999,2]
[333480221,1722177072701,-381.86278,0.00010999,2]
[333480222,1722177072710,-381.86278,0.00010999,2]
[333480223,1722177072720,-381.86278,0.00010999,2]
[333480224,1722177072730,-381.86278,0.00010999,2]
[333480225,1722177072740,-500.0,0.00010999,2]
[333480226,1722177072751,-627.22,0.00010999,2]
[333480227,1722177072761,-381.86278,0.00010999,2]
[333480228,1722177072770,-455.44476425,0.00010999,2]
[333480229,1722177072780,-381.86278,0.00010999,2]
[333480230,1722177072789,-381.86278,0.00010999,2]
[333480231,1722177072799,-503.24914764,0.00010999,2]
[333480232,1722177072808,-500.0,0.00010999,2]
[333480233,1722177072817,-381.86278,0.00010999,2]
[333480234,1722177072826,-381.86278,0.00010999,2]
[333480235,1722177072835,-500.0,0.00010999,2]
[333480236,1722177072844,-381.86278,0.00010999,2]
[333480237,1722177072854,-501.74666153,0.00010999,2]
[333480238,1722177072863,-500.0,0.00010999,2]
[333480239,1722177072872,-500.0,0.00010999,2]
[333480240,1722177072882,-500.0,0.00010999,2]
[333480241,1722177072891,-422.28,0.00010999,2]
[333480242,1722177072900,-250.13,0.00010999,2]
[333480243,1722177072910,-504.92242693,0.00010999,2]
[333480244,1722177072919,-500.0,0.00010999,2]
[333480245,1722177072929,-266.97,0.00010999,2]
[333480246,1722177072939,-500.0,0.00010999,2]
[333480247,1722177072949,-151.0,0.00010999,2]
[333480248,1722177072958,-151.0,0.00010999,2]
[333480249,1722177072967,-151.0,0.00010999,2]
[333480250,1722177072977,-151.0,0.00010999,2]
[333480251,1722177072986,-420.97349026,0.00010999,2]
[333480252,1722177073521,-82.68447916,0.00010999,2]
[333480253,1722177073532,-151.0,0.00010999,2]
[333480254,1722177073545,-501.17698215,0.00010999,2]
[333480255,1722177073555,-151.0,0.00010999,2]
[333480256,1722177073564,-151.0,0.00010999,2]
[333480257,1722177073574,-151.0,0.00010999,2]
[333480258,1722177073584,-151.0,0.00010999,2]
[333480259,1722177073593,-151.0,0.00010999,2]
[333480260,1722177073602,-151.0,0.00010999,2]
[333480261,1722177073612,-151.0,0.00010999,2]
[333480262,1722177073622,-151.0,0.00010999,2]
[333480263,1722177073632,-500.0,0.00010999,2]
[333480264,1722177073643,-151.0,0.00010999,2]
[333480265,1722177073653,-215.940447,0.00010999,2]
[333480266,1722177073662,-263.53,0.00010999,2]
[333480267,1722177073672,-151.0,0.00010999,2]
[333480268,1722177073681,-501.16785929,0.00010999,2]
[333480269,1722177073691,-151.0,0.00010999,2]
[333480270,1722177073700,-500.0,0.00010999,2]
[333480271,1722177073710,-151.0,0.00010999,2]
[333480272,1722177073721,-151.0,0.00010999,2]
[333480273,1722177073733,-500.0,0.00010999,2]
[333480274,1722177073745,-151.0,0.00010999,2]
[333480275,1722177073755,-500.0,0.00010999,2]
[333480276,1722177073767,-151.0,0.00010999,2]
[333480277,1722177073776,-372.46,0.00010999,2]
[333480278,1722177073786,-170.955024,0.00010999,2]
[333480279,1722177073797,-500.0,0.00010999,2]
[333480280,1722177073806,-151.0,0.00010999,2]
[333480281,1722177073815,-500.0,0.00010999,2]
[333480282,1722177073825,-502.09924127,0.00010999,2]
[333480283,1722177073988,-500.0,0.00010999,2]
[333480284,1722177074001,-151.0,0.00010999,2]
[333480285,1722177074010,-500.0,0.00010999,2]
[333480286,1722177074020,-637.91372443,0.00010999,2]
[333480287,1722177074031,-151.252247,0.00010999,2]
[333480288,1722177074040,-503.6955784,0.00010999,2]
[333480289,1722177074051,-500.0,0.00010999,2]
[333480290,1722177074061,-500.0,0.00010999,2]
[333480291,1722177074071,-151.00045,0.00010999,2]
[333480292,1722177074081,-532.42,0.00010999,2]
[333480293,1722177074091,-500.0,0.00010999,2]
[333480294,1722177074101,-500.0,0.00010999,2]
[333480295,1722177074110,-500.0,0.00010999,2]
[333480296,1722177074119,-500.98443836,0.00010999,2]
[333480297,1722177074129,-252.5,0.00010999,2]
[333480298,1722177074139,-500.0,0.00010999,2]
[333480299,1722177074148,-500.0,0.00010999,2]
[333480300,1722177074158,-216.678,0.00010999,2]
[333480301,1722177074167,-500.0,0.00010999,2]
[333480302,1722177074177,-255.42,0.00010999,2]
[333480303,1722177074187,-216.678,0.00010999,2]
[333480304,1722177074197,-540.2357967,0.00010999,2]
[333480305,1722177074206,-216.678,0.00010999,2]
[333480306,1722177074216,-216.678,0.00010999,2]
[333480307,1722177074225,-216.678,0.00010999,2]
[333480308,1722177074234,-10000.0,0.00010999,2]
[333480309,1722177074244,-500.0,0.00010999,2]
[333480310,1722177074256,-10000.0,0.00010999,2]
[333480311,1722177074266,-216.678,0.00010999,2]
[333480312,1722177074274,-216.678,0.00010999,2]
[333480313,1722177074284,-10000.0,0.00010999,2]
[333480314,1722177074294,-216.678,0.00010999,2]
[333480315,1722177074303,-10000.0,0.00010999,2]
[333480316,1722177074313,-500.0,0.00010999,2]
[333480317,1722177074322,-500.0,0.00010999,2]
[333480318,1722177074334,-216.678,0.00010999,2]
[333480319,1722177074346,-473.11,0.00010999,2]
[333480320,1722177074356,-10000.0,0.00010999,2]
[333480321,1722177074366,-216.678,0.00010999,2]
[333480322,1722177074376,-216.678,0.00010999,2]
[333480323,1722177074386,-10000.0,0.00010999,2]
[333480324,1722177074396,-216.678,0.00010999,2]
[333480325,1722177074406,-10000.0,0.00010999,2]
[333480326,1722177074416,-216.678,0.00010999,2]
[333480327,1722177074426,-10000.0,0.00010999,2]
[333480328,1722177074435,-216.678,0.00010999,2]
[333480329,1722177074445,-508.01362503,0.00010999,2]
[333480330,1722177074455,-10000.0,0.00010999,2]
[333480331,1722177074465,-216.678,0.00010999,2]
[333480332,1722177074476,-10000.0,0.00010999,2]
[333480333,1722177074486,-216.678,0.00010999,2]
[333480334,1722177074497,-216.678,0.00010999,2]
[333480335,1722177074506,-10000.0,0.00010999,2]
[333480336,1722177074516,-216.678,0.00010999,2]
[333480337,1722177074525,-10000.0,0.00010999,2]
[333480338,1722177074537,-216.678,0.00010999,2]
[333480339,1722177074547,-10000.0,0.00010999,2]
[333480340,1722177074556,-216.678,0.00010999,2]
[333480341,1722177074566,-10000.0,0.00010999,2]
[333480342,1722177074575,-10000.0,0.00010999,2]
[333480343,1722177074584,-500.0,0.00010999,2]
[333480344,1722177074595,-10000.0,0.00010999,2]
[333480345,1722177074604,-10000.0,0.00010999,2]
[333480346,1722177074614,-10000.0,0.00010999,2]
[333480347,1722177074623,-10000.0,0.00010999,2]
[333480348,1722177074633,-500.0,0.00010999,2]
[333480349,1722177074642,-10000.0,0.00010999,2]
[333480350,1722177074653,-10000.0,0.00010999,2]
[333480351,1722177074664,-10000.0,0.00010999,2]
[333480352,1722177074674,-10000.0,0.00010999,2]
[333480353,1722177074684,-543.04472343,0.00010999,2]
[333480354,1722177074693,-10000.0,0.00010999,2]
[333480355,1722177074703,-500.0,0.00010999,2]
[333480356,1722177074713,-10000.0,0.00010999,2]
[333480357,1722177074722,-10000.0,0.00010999,2]
[333480358,1722177074731,-10000.0,0.00010999,2]
[333480359,1722177074741,-502.1966719,0.00010999,2]
[333480360,1722177074753,-10000.0,0.00010999,2]
[333480361,1722177074762,-10000.0,0.00010999,2]
[333480362,1722177074772,-500.0,0.00010999,2]
[333480363,1722177074781,-390.57771691,0.00010999,2]
[333480364,1722177074791,-10000.0,0.00010999,2]
[333480365,1722177074800,-620.21,0.00010999,2]
[333480366,1722177074809,-10000.0,0.00010999,2]
[333480367,1722177074819,-2841.859149,0.00010999,2]
[333480368,1722177074828,-6721.96067,0.00010999,2]
[333480369,1722177074838,-151.0,0.00010999,2]
[333480370,1722177074847,-10000.0,0.00010999,2]
[333480371,1722177074858,-151.0,0.00010999,2]
[333480372,1722177074869,-2841.859149,0.00010999,2]
[333480373,1722177074879,-10000.0,0.00010999,2]
[333480374,1722177074889,-151.0,0.00010999,2]
[333480375,1722177074898,-2841.859149,0.00010999,2]
[333480376,1722177074908,-10000.0,0.00010999,2]
[333480377,1722177074918,-6721.96067,0.00010999,2]
[333480378,1722177074928,-151.0,0.00010999,2]
[333480379,1722177074937,-2841.859149,0.00010999,2]
[333480380,1722177074948,-10000.0,0.00010999,2]
[333480381,1722177074957,-2346.74212676,0.00010999,2]
[333480382,1722177074972,-611.319,0.00010999,2]
[333480383,1722177075138,-573.36,0.00010997,2]
[333480384,1722177075147,-573.36,0.00010997,2]
[333480385,1722177075157,-573.36,0.00010997,2]
[333480386,1722177075166,-573.36,0.00010997,2]
[333480387,1722177075176,-573.36,0.00010998,2]
[333480388,1722177075186,-573.36,0.00010998,2]
[333480389,1722177075195,-573.36,0.00010998,2]
[333480390,1722177075205,-3763.89954324,0.00010999,2]
[333480391,1722177075214,-151.0,0.00010999,2]
[333480392,1722177075223,-2841.859149,0.00010999,2]
[333480393,1722177075233,-6721.96067,0.00010999,2]
[333480394,1722177075243,-151.0,0.00010999,2]
[333480395,1722177075257,-10000.0,0.00010999,2]
[333480396,1722177075266,-2841.859149,0.00010999,2]
[333480397,1722177075276,-6721.96067,0.00010999,2]
[333480398,1722177075286,-2841.859149,0.00010999,2]
[333480399,1722177075296,-10000.0,0.00010999,2]
[333480400,1722177075306,-3589.55013676,0.00010999,2]
[333480401,1722177075328,-1329.54172578,0.00010999,2]
[333480402,1722177075340,-1527.49680579,0.00010999,2]
[333480403,1722177075359,-1732.8790104,0.0001045,2]
[333480404,1722177075371,-1436.2072826,0.0001045,2]
[333480405,1722177075381,-275.37200167,0.00010999,2]
[333480406,1722177075391,-2841.859149,0.00010999,2]
[333480407,1722177075400,-10000.0,0.00010999,2]
[333480408,1722177075410,-151.0,0.00010999,2]
[333480409,1722177075420,-6721.96067,0.00010999,2]
[333480410,1722177075431,-2841.859149,0.00010999,2]
[333480411,1722177075441,-502.92019558,0.00010999,2]
[333480412,1722177075452,-10000.0,0.00010999,2]
[333480413,1722177075463,-151.256477,0.00010999,2]
[333480414,1722177075474,-6721.96067,0.00010999,2]
[333480415,1722177075484,-6721.96067,0.00010999,2]
[333480416,1722177075494,-10000.0,0.00010999,2]
[333480417,1722177075505,-2841.859149,0.00010999,2]
[333480418,1722177075515,-6721.96067,0.00010999,2]
[333480419,1722177075525,-10000.0,0.00010999,2]
[333480420,1722177075535,-2841.859149,0.00010999,2]
[333480421,1722177075545,-6721.96067,0.00010999,2]
[333480422,1722177075554,-10000.0,0.00010999,2]
[333480423,1722177075564,-6721.96067,0.00010999,2]
[333480424,1722177075574,-2841.859149,0.00010999,2]
[333480425,1722177075584,-10000.0,0.00010999,2]
[333480426,1722177075593,-2841.859149,0.00010999,2]
[333480427,1722177075603,-6721.96067,0.00010999,2]
[333480428,1722177075612,-500.0,0.00010999,2]
[333480429,1722177075622,-6721.96067,0.00010999,2]
[333480430,1722177075631,-10000.0,0.00010999,2]
[333480431,1722177075641,-500.0,0.00010999,2]
[333480432,1722177075650,-503.11608463,0.00010999,2]
[333480433,1722177075659,-6721.96067,0.00010999,2]
[333480434,1722177075669,-283.84,0.00010999,2]
[333480435,1722177075678,-10000.0,0.00010999,2]
[333480436,1722177075688,-6721.96067,0.00010999,2]
[333480437,1722177075698,-10000.0,0.00010999,2]
[333480438,1722177075707,-6721.96067,0.00010999,2]
[333480439,1722177075716,-10000.0,0.00010999,2]
[333480440,1722177075725,-6721.96067,0.00010999,2]
[333480441,1722177075734,-6721.96067,0.00010999,2]
[333480442,1722177075742,-10000.0,0.00010999,2]
[333480443,1722177075752,-6721.960669,0.00010999,2]
[333480444,1722177075761,-500.0,0.00010999,2]
[333480445,1722177075771,-2300.28860645,0.00010999,2]
[333480446,1722177075938,-500.0,0.00010997,2]
[333480447,1722177075948,-500.0,0.00010997,2]
[333480448,1722177075957,-164.50030772,0.00010997,2]
[333480449,1722177075967,-7699.71139355,0.00010999,2]
[333480450,1722177075976,-4775.01229873,0.00010999,2]
[333480451,1722177075987,-3003.74916371,0.00010999,2]
[333480452,1722177076000,-2221.23853756,0.00010999,2]
[333480453,1722177076009,-5017.33387648,0.00010999,2]
[333480454,1722177076020,-3082.7150898,0.00010999,2]
[333480455,1722177076041,-1488.3590197,0.00010999,2]
[333480456,1722177076066,-266.39857557,0.00010999,2]
[333480457,1722177076078,-145.19343845,0.00010999,2]
[333480458,1722177076087,-377.69019017,0.00010999,2]
[333480459,1722177076098,-519.61195579,0.00010999,2]
[333480460,1722177076113,-281.28523518,0.00010999,2]
[333480461,1722177076124,-1434.79165165,0.00010999,2]
[333480462,1722177076135,-228.48011621,0.00010999,2]
[333480463,1722177076145,-23.35275579,0.00010999,2]
[333480464,1722177076219,-4653.66294273,0.00010999,2]
[333480465,1722177076230,-5322.98430148,0.00010999,2]
[333480466,1722177076239,-164.77772527,0.00010999,2]
[333480467,1722177076254,-2677.08142373,0.00010999,2]
[333480468,1722177076263,-147.56704154,0.00010999,2]
[333480469,1722177076274,-1119.533309,0.00010999,2]
[333480477,1722177494882,-151.0,0.00020469,120]
[333480478,1722177494917,-150.0,0.00020562,120]
[333480479,1722177494954,-150.0,0.00020887,120]
[333480480,1722177494989,-150.0,0.0002099,120]
[333480484,1722177870126,-240.39,8.219e-05,2]
[333480485,1722177870148,-334.83124329,8.971e-05,2]
[333480486,1722177870170,-1100.0,8.972e-05,2]
[333480487,1722177870191,-500.0,8.972e-05,2]
[333480488,1722177870212,-500.0,8.972e-05,2]
[333480489,1722177870234,-1400.0,8.972e-05,2]
[333480490,1722177870256,-1100.0,9.794e-05,2]
[333480491,1722177870278,-1400.0,9.794e-05,2]
[333480492,1722177870300,-400.0,0.00010074,2]
[333480493,1722177870322,-240.39,0.0001048,2]
[333480494,1722177870343,-1100.0,0.00010616,2]
[333480495,1722177870364,-500.0,0.00010616,2]
[333480496,1722177870386,-500.0,0.00010616,2]
[333480497,1722177870407,-1400.0,0.00010616,2]
[333480498,1722177870428,-242.0,0.00010672,2]
[333480499,1722177870449,-500.0,0.0001091,2]
[333480500,1722177870471,-500.0,0.00010911,2]
[333480501,1722177870496,-500.0,0.00010958,2]
[333480502,1722177870518,-500.0,0.00010958,2]
[333480503,1722177870737,-228.4573741,0.00010958,2]
[333480504,1722177870761,-704.62,0.00010958,2]
[333480505,1722177870783,-500.0,0.00010958,2]
[333480506,1722177870804,-500.0,0.00010958,2]
[333480507,1722177870825,-307.38698925,0.00010958,2]
[333480508,1722177870846,-515.73599369,0.00010958,2]
[333480509,1722177870867,-500.0,0.00010958,2]
[333480510,1722177870888,-500.0,0.00010958,2]
[333480511,1722177870909,-500.0,0.00010958,2]
[333480512,1722177870929,-500.0,0.00010958,2]
[333480513,1722177870950,-500.0,0.00010958,2]
[333480514,1722177870971,-500.0,0.00010958,2]
[333480515,1722177870992,-200.0,0.00010959,2]
[333480516,1722177871013,-20086.18839967,0.0001099,2]
[333480546,1722178234552,-900.0,8.972e-05,2]
[333480547,1722178234566,-221.25510711,8.972e-05,2]
[333480548,1722178234651,-878.74489289,8.972e-05,2]
[333480549,1722178234661,-213.93393129,9.794e-05,2]
[333480550,1722178234674,-686.06606871,9.794e-05,2]
[333480551,1722178234684,-297.02961752,9.794e-05,2]
[333480552,1722178234752,-508.47198714,9.794e-05,2]
[333480553,1722178234844,-294.49839534,9.794e-05,2]
[333480554,1722178234854,-500.0,0.00010068,2]
[333480555,1722178234863,-500.0,0.00010068,2]
[333480556,1722178234873,-250.0,0.00010195,2]
[333480557,1722178234883,-300.0,0.00010249,2]
[333480558,1722178234892,-680.0,0.00010253,2]
[333480559,1722178234902,-900.0,0.00010616,2]
[333480560,1722178234914,-1100.0,0.00010616,2]
[333480561,1722178234925,-476189.71589106,0.00010856,2]
[333480562,1722178234934,-386698.03425093,0.00010858,2]
[333480563,1722178234945,-89491.68164013,0.00010858,2]
[333480564,1722178234955,-46270.03935959,0.00010859,2]
[333480565,1722178234967,-667.36237526,0.00010859,2]
[333480566,1722178234979,-8216.77537817,0.00010859,2]
[333480567,1722178234997,-913.25393759,0.00010859,2]
[333480578,1722178238259,-38530.01961616,0.00010859,2]
[333480579,1722178238271,-5497.20593547,0.00010859,2]
[333480580,1722178238283,-13359.01186054,0.00010859,2]
[333480581,1722178238444,-279.36,0.00010859,2]
[333480582,1722178238455,-5179.52549958,0.00010859,2]
[333480583,1722178238466,-257.97814798,0.00010859,2]
[333480600,1722178240515,-276.93749854,0.00010859,2]
[333480601,1722178240525,-28270.68588067,0.00010859,2]
[333480602,1722178240536,-350.465885,0.00010859,2]
[333480606,1722178240966,-211.57877068,0.00010859,2]
[333480612,1722178243269,-328186.45324437,0.00010859,2]
[333480613,1722178243278,-276.93749854,0.00010868,2]
[333480614,1722178243288,-276.93749854,0.00010873,2]
[333480615,1722178243297,-71094.21106907,0.00010874,2]
[333480616,1722178243307,-71094.21106907,0.00010882,2]
[333480617,1722178243317,-71094.21106907,0.00010889,2]
[333480618,1722178243326,-3250.71546228,0.000109,2]
[333480619,1722178243336,-133226.32308927,0.0001099,2]
[333480625,1722178246370,-4857.28348906,0.0001099,2]
[333480626,1722178246381,-922.26269289,0.0001099,2]
[333480627,1722178246460,-432.27653367,0.0001099,2]
[333480628,1722178246475,-677.0,0.0001099,2]
[333480629,1722178246487,-870.66039763,0.0001099,2]
[333480630,1722178246511,-776.31930374,0.0001099,2]
[333480631,1722178246522,-731.34227642,0.0001099,2]
[333480632,1722178246534,-603.17162378,0.0001099,2]
[333480633,1722178246550,-2318.42279138,0.0001099,2]
[333480634,1722178246953,-21630.58591118,0.0001099,2]
[333480635,1722178246963,-2936.7291169,0.0001099,5]
[333480636,1722178246974,-216.84666303,0.0001099,2]
[333480637,1722178246986,-961.30384944,0.0001099,2]
[333480638,1722178246997,-20370.21790881,0.0001099,2]
[333480639,1722178247007,-47555.25436931,0.0001099,2]
[333480640,1722178247016,-871.22841201,0.0001099,2]
[333480641,1722178247027,-772.30541732,0.0001099,2]
[333480642,1722178247037,-485.12400383,0.0001099,2]
[333480643,1722178247046,-291.25364528,0.0001099,2]
[333480644,1722178247056,-158.87294729,0.0001099,2]
[333480645,1722178247068,-7569.89827325,0.0001099,2]
[333480646,1722178247077,-15101.80802368,0.0001099,2]
[333480647,1722178247086,-1410.94012241,0.0001099,2]
[333480648,1722178247095,-155.20228337,0.0001099,2]
[333480649,1722178247105,-411.44480674,0.0001099,2]
[333480650,1722178247114,-213.58073735,0.0001099,2]
[333480651,1722178247124,-155.0,0.0001099,2]
[333480652,1722178247133,-155.0,0.0001099,2]
[333480653,1722178247143,-500.0,0.00010996,2]
[333480654,1722178247153,-500.0,0.00010996,2]
[333480655,1722178247162,-704.62,0.00010996,2]
[333480656,1722178247173,-500.0,0.00010996,2]
[333480657,1722178247182,-208.14,0.00010996,2]
[333480658,1722178247191,-500.0,0.00010996,2]
[333480659,1722178247201,-500.0,0.00010996,2]
[333480660,1722178247211,-414.01891517,0.00010996,2]
[333480661,1722178247220,-500.0,0.00010997,2]
[333480662,1722178247229,-500.0,0.00010997,2]
[333480663,1722178247239,-500.0,0.00010997,2]
[333480664,1722178247248,-500.0,0.00010997,2]
[333480665,1722178247257,-500.0,0.00010997,2]
[333480666,1722178247266,-500.0,0.00010997,2]
[333480667,1722178247275,-500.0,0.00010997,2]
[333480668,1722178247285,-500.0,0.00010997,2]
[333480669,1722178247294,-500.0,0.00010997,2]
[333480670,1722178247303,-500.0,0.00010997,2]
[333480671,1722178247313,-500.0,0.00010997,2]
[333480672,1722178247323,-300.34,0.00010997,2]
[333480673,1722178247332,-378.71309136,0.00010997,2]
[333480674,1722178247342,-500.0,0.00010997,2]
[333480675,1722178247351,-500.0,0.00010997,2]
[333480676,1722178247360,-500.0,0.00010997,2]
[333480677,1722178247370,-500.0,0.00010997,2]
[333480678,1722178247379,-500.0,0.00010997,2]
[333480679,1722178247389,-285.25626235,0.00010997,2]
[333480680,1722178247399,-500.0,0.00010997,2]
[333480681,1722178247409,-500.0,0.00010997,2]
[333480682,1722178247420,-500.0,0.00010997,2]
[333480683,1722178247430,-500.0,0.00010997,2]
[333480684,1722178247439,-500.0,0.00010997,2]
[333480685,1722178247448,-500.0,0.00010997,2]
[333480686,1722178247458,-500.0,0.00010997,2]
[333480687,1722178247468,-500.0,0.00010997,2]
[333480688,1722178247478,-500.0,0.00010997,2]
[333480689,1722178247488,-500.0,0.00010997,2]
[333480690,1722178247498,-500.0,0.00010997,2]
[333480691,1722178247508,-500.0,0.00010997,2]
[333480692,1722178247521,-500.0,0.00010997,2]
[333480693,1722178247530,-500.0,0.00010997,2]
[333480694,1722178247539,-500.0,0.00010997,2]
[333480695,1722178247549,-500.0,0.00010997,2]
[333480696,1722178247561,-582.83308971,0.00010997,2]
[333480697,1722178247573,-500.0,0.00010997,2]
[333480698,1722178247582,-500.0,0.00010997,2]
[333480699,1722178247592,-500.0,0.00010997,2]
[333480700,1722178247602,-500.0,0.00010997,2]
[333480701,1722178247612,-500.0,0.00010997,2]
[333480702,1722178247621,-500.0,0.00010997,2]
[333480703,1722178247630,-500.0,0.00010997,2]
[333480704,1722178247639,-500.0,0.00010997,2]
[333480705,1722178247651,-500.0,0.00010997,2]
[333480706,1722178247660,-500.0,0.00010997,2]
[333480707,1722178247669,-500.0,0.00010997,2]
[333480708,1722178247678,-500.0,0.00010997,2]
[333480709,1722178247687,-500.0,0.00010997,2]
[333480710,1722178247696,-500.0,0.00010997,2]
[333480711,1722178247705,-500.0,0.00010997,2]
[333480712,1722178247715,-500.0,0.00010997,2]
[333480713,1722178247724,-318.77,0.00010997,2]
[333480714,1722178247733,-500.0,0.00010997,2]
[333480715,1722178247742,-500.0,0.00010997,2]
[333480716,1722178247751,-500.0,0.00010997,2]
[333480717,1722178247760,-500.0,0.00010997,2]
[333480718,1722178247769,-500.0,0.00010997,2]
[333480719,1722178247780,-503.90775106,0.00010997,2]
[333480720,1722178247790,-169.46221674,0.00010997,2]
[333480721,1722178247800,-500.0,0.00010997,2]
[333480722,1722178247810,-500.0,0.00010997,2]
[333480723,1722178247821,-500.0,0.00010997,2]
[333480724,1722178247831,-500.0,0.00010997,2]
[333480725,1722178247840,-500.0,0.00010997,2]
[333480726,1722178247849,-500.0,0.00010997,2]
[333480727,1722178247859,-500.0,0.00010997,2]
[333480728,1722178247869,-500.0,0.00010997,2]
[333480729,1722178247878,-180.88000894,0.00010997,2]
[333480730,1722178247888,-274.60566683,0.00010997,2]
[333480731,1722178247897,-500.0,0.00010997,2]
[333480732,1722178247906,-500.0,0.00010997,2]
[333480733,1722178247916,-500.0,0.00010997,2]
[333480734,1722178247928,-500.0,0.00010997,2]
[333480735,1722178247937,-500.0,0.00010997,2]
[333480736,1722178247946,-500.0,0.00010997,2]
[333480737,1722178247957,-500.0,0.00010997,2]
[333480738,1722178247966,-500.0,0.00010997,2]
[333480739,1722178247976,-500.0,0.00010997,2]
[333480740,1722178247987,-500.0,0.00010997,2]
[333480741,1722178247996,-500.0,0.00010997,2]
[333480742,1722178248005,-603.34,0.00010997,2]
[333480743,1722178248015,-500.0,0.00010997,2]
[333480744,1722178248024,-500.0,0.00010997,2]
[333480745,1722178248034,-371.37,0.00010997,2]
[333480746,1722178248044,-500.0,0.00010997,2]
[333480747,1722178248054,-500.0,0.00010997,2]
[333480748,1722178248064,-500.0,0.00010997,2]
[333480749,1722178248073,-500.0,0.00010997,2]
[333480750,1722178248085,-501.42413765,0.00010997,2]
[333480751,1722178248108,-503.90710955,0.00010997,2]
[333480752,1722178248154,-503.46447951,0.00010997,2]
[333480753,1722178248287,-501.75145994,0.00010997,2]
[333480754,1722178248453,-501.15627056,0.00010997,2]
[333480755,1722178248592,-501.64485184,0.00010997,2]
[333480756,1722178248665,-502.71263083,0.00010997,2]
[333480757,1722178248741,-501.56343572,0.00010997,2]
[333480758,1722178248820,-501.73444332,0.00010997,2]
[333480759,1722178248887,-704.62,0.00010997,2]
[333480760,1722178248934,-704.62,0.00010997,2]